bitfinex-derivatives/quotes_SOLF0:USTF0_20240907
["timestamp","ask_amount","ask_price","bid_price","bid_amount"]
[1725752605011,3.9203,127.55,127.52,3.9211]
[1725752609316,1.3484,127.56,127.53,3.9206]
[1725752610417,3.9204,127.55,127.52,3.9209]
[1725752612925,3.9205,127.54,127.52,3.9209]
[1725752613425,9.66,127.55,127.52,3.9209]
[1725752614123,13.5804,127.55,127.52,3.9209]
[1725752616826,16.05526448,127.59,127.52,9.66]
[1725752617027,11.34810501,127.61,127.52,9.66]
[1725752617330,3.9197,127.57,127.54,3.9202]
[1725752618124,3.9197,127.57,127.52,9.66]
[1725752619029,3.9197,127.57,127.54,3.9203]
[1725752621026,3.9194,127.58,127.54,9.66]
[1725752621819,3.9196,127.57,127.55,3.92]
[1725752631932,3.9196,127.57,127.54,13.5803]
[1725752633746,3.9196,127.57,127.54,3.9203]
[1725752633949,3.9199,127.56,127.54,3.9203]
[1725752634248,9.66,127.57,127.53,3.9206]
[1725752635348,3.92,127.56,127.51,9.66]
[1725752635648,3.92,127.56,127.52,9.66]
[1725752636049,3.92,127.56,127.54,3.9204]
[1725752641951,3.92,127.56,127.53,3.9206]
[1725752650863,3.92,127.56,127.54,3.9205]
[1725752655560,3.92,127.56,127.53,3.9206]
[1725752656865,3.92,127.56,127.54,3.9204]
[1725752661861,3.92,127.56,127.53,3.9206]
[1725752662168,3.92,127.56,127.52,9.66]
[1725752663371,3.92,127.56,127.54,3.9204]
[1725752669385,3.92,127.56,127.53,3.9206]
[1725752669683,3.9204,127.55,127.52,9.66]
[1725752670480,3.9204,127.55,127.52,13.5809]
[1725752671583,3.9209,127.53,127.49,3.95936663]
[1725752671787,9.66,127.54,127.48,1.3055]
[1725752671984,9.66,127.54,127.47,11.0132]
[1725752671985,9.66,127.54,127.47,9.66]
[1725752672283,3.9213,127.52,127.49,3.9218]
[1725752673281,3.9213,127.52,127.5,3.9217]
[1725752682896,13.63553086,127.54,127.48,3.93859786]
[1725752683088,15.03753086,127.54,127.47,9.66]
[1725752683284,3.9215,127.51,127.48,7.85948187]
[1725752683591,1.402,127.54,127.48,3.93748187]
[1725752684699,1.402,127.54,127.49,3.9219]
[1725752684700,3.9211,127.52,127.49,3.9219]
[1725752686990,3.9215,127.51,127.49,3.9219]
[1725752689600,3.9215,127.51,127.48,3.9222]
[1725752690797,9.66,127.53,127.46,9.66]
[1725752691798,3.9216,127.51,127.48,3.9221]
[1725752701204,9.66,127.53,127.48,3.9221]
[1725752701408,9.66,127.51,127.45,145.39348692]
[1725752701711,9.66,127.49,127.44,1.3433]
[1725752702210,3.9225,127.48,127.45,3.9231]
[1725752702509,3.9225,127.48,127.44,5.2666]
[1725752702807,3.9225,127.48,127.44,1.3433]
[1725752703511,3.9225,127.48,127.45,3.9231]
[1725752706614,3.9222,127.49,127.44,11.0033]
[1725752707013,3.9222,127.49,127.45,3.923]
[1725752707514,3.9222,127.49,127.44,11.0033]
[1725752708002,3.9225,127.48,127.45,3.9231]
[1725752710419,13.5821,127.49,127.46,3.9229]
[1725752710615,2.6441,127.53,127.46,9.66]
[1725752710819,11.0309,127.53,127.46,9.66]
[1725752711117,3.9214,127.52,127.48,3.9223]
[1725752711420,3.9214,127.52,127.48,7.75007559]
[1725752711717,3.9215,127.51,127.48,7.75007559]
[1725752718315,3.9218,127.5,127.47,3.9225]
[1725752718712,9.66,127.51,127.48,3.95858205]
[1725752718912,9.66,127.51,127.45,11.046]
[1725752719508,13.5816,127.51,127.48,3.9221]
[1725752719716,13.5816,127.51,127.48,7.88460494]
[1725752719917,13.5816,127.51,127.48,3.9221]
[1725752720317,13.5816,127.51,127.48,7.86106763]
[1725752720522,13.5816,127.51,127.48,3.9221]
[1725752721023,13.5816,127.51,127.48,7.88421265]
[1725752723425,13.5816,127.51,127.48,3.9221]
[1725752723626,13.5816,127.51,127.48,7.77554877]
[1725752723923,13.5816,127.51,127.48,3.9221]
[1725752724225,13.5816,127.51,127.48,7.82223108]
[1725752731829,13.5816,127.51,127.48,3.9221]
[1725752732933,13.5816,127.51,127.48,7.79751692]
[1725752733433,13.5816,127.51,127.48,3.9221]
[1725752733635,3.9217,127.5,127.47,3.9225]
[1725752733935,3.9217,127.5,127.48,3.96682011]
[1725752734228,9.66,127.51,127.45,11.046]
[1725752734423,13.5816,127.51,127.48,3.9223]
[1725752734634,13.5816,127.51,127.48,7.75809579]
[1725752735948,13.5816,127.51,127.48,3.9223]
[1725752736639,13.5816,127.51,127.48,7.77065647]
[1725752736843,13.5816,127.51,127.48,3.9223]
[1725752740242,3.9218,127.5,127.48,3.9223]
[1725752742743,3.9218,127.5,127.47,3.9225]
[1725752756257,3.9218,127.5,127.48,3.9223]
[1725752760458,3.9218,127.5,127.47,3.9225]
[1725752768269,9.66,127.51,127.47,3.9225]
[1725752768764,3.9218,127.5,127.47,3.9225]
[1725752769069,9.66,127.51,127.47,3.9225]
[1725752769267,3.922,127.49,127.47,3.9225]
[1725752779172,3.922,127.49,127.46,3.9228]
[1725752782977,3.9219,127.5,127.47,3.9225]
[1725752783179,3.9219,127.5,127.45,9.66]
[1725752783677,3.9219,127.5,127.47,3.9225]
[1725752791785,3.922,127.49,127.47,3.9225]
[1725752797893,3.9216,127.51,127.45,9.66]
[1725752798482,3.9216,127.51,127.46,9.66]
[1725752798681,9.66,127.56,127.49,9.66]
[1725752798987,9.66,127.56,127.49,13.56928919]
[1725752799185,9.66,127.56,127.5,1.3194]
[1725752799186,13.5802,127.56,127.5,1.3194]
[1725752799484,9.66,127.56,127.5,1.3194]
[1725752800390,3.9202,127.55,127.52,3.9209]
[1725752803989,9.66,127.57,127.5,10.9794]
[1725752804193,9.66,127.57,127.5,1.3194]
[1725752804493,3.9202,127.56,127.52,3.9211]
[1725752805392,9.66,127.54,127.49,3.90928919]
[1725752805592,9.66,127.54,127.47,11.0006]
[1725752805894,3.921,127.53,127.5,3.9216]
[1725752809904,3.921,127.53,127.51,3.9214]
[1725752813605,13.5806,127.54,127.51,3.9214]
[1725752816407,3.9209,127.53,127.51,3.9214]
[1725752820802,3.9209,127.53,127.48,13.48892775]
[1725752820803,1.3214,127.55,127.48,13.48892775]
[1725752821609,3.9206,127.54,127.51,3.9212]
[1725752821810,13.5806,127.54,127.51,3.9212]
[1725752823504,3.9209,127.53,127.51,3.9212]
[1725752824711,13.5806,127.54,127.51,3.9212]
[1725752829214,5.2417,127.55,127.49,9.66]
[1725752830609,5.2417,127.55,127.52,3.9209]
[1725752835617,1.3908,127.59,127.51,9.66]
[1725752835812,9.66,127.58,127.51,9.66]
[1725752836120,2.664,127.59,127.5,1.273]
[1725752836121,9.66,127.56,127.52,3.921]
[1725752837220,3.9203,127.55,127.53,3.9208]
[1725752837614,3.9199,127.56,127.53,3.9208]
[1725752838720,3.9202,127.55,127.53,3.9208]
[1725752838920,9.66,127.57,127.53,3.9208]
[1725752839214,3.92,127.56,127.53,3.9208]
[1725752842818,3.92,127.56,127.54,3.9205]
[1725752842819,3.9199,127.56,127.54,3.9205]
[1725752843125,2.664,127.59,127.53,9.66]
[1725752843517,3.9194,127.58,127.55,3.9199]
[1725752843716,12.324,127.59,127.55,3.9199]
[1725752844119,3.9194,127.58,127.55,3.9199]
[1725752847217,2.664,127.59,127.57,3.9194]
[1725752847425,1.2732,127.59,127.54,9.66]
[1725752847622,9.66,127.61,127.54,10.9373]
[1725752848524,3.9191,127.59,127.56,3.9197]
[1725752848822,3.9191,127.59,127.56,7.81594905]
[1725752856935,3.9191,127.59,127.56,3.9197]
[1725752857135,9.66,127.59,127.54,1.2773]
[1725752857531,3.9197,127.57,127.54,1.2773]
[1725752857837,3.9197,127.57,127.54,5.1975]
[1725752859227,3.9195,127.58,127.55,3.8672311]
[1725752859430,16.05470538,127.65,127.57,9.66]
[1725752859627,234.3391,127.7,127.63,3.9174]
[1725752859934,11.34186642,127.69,127.63,145.36974782]
[1725752860240,5.0,127.7,127.63,145.36974782]
[1725752860437,5.0,127.7,127.63,149.22246994]
[1725752860634,5.0,127.7,127.64,1.3761]
[1725752861136,5.0,127.7,127.63,149.22246994]
[1725752861439,28.54,127.7,127.63,145.36974782]
[1725752861638,1.3391,127.69,127.63,145.36974782]
[1725752861936,9.66,127.67,127.63,145.36974782]
[1725752862734,9.66,127.66,127.59,1.3761]
[1725752862936,12.4008,127.66,127.6,3.98323661]
[1725752863246,9.66,127.64,127.6,3.98323661]
[1725752864438,9.66,127.64,127.59,1.3761]
[1725752864640,13.578,127.63,127.56,13.5797]
[1725752865239,2.7408,127.66,127.57,4.01388414]
[1725752865451,2.7408,127.66,127.55,9.66]
[1725752865452,9.66,127.62,127.55,9.66]
[1725752867346,9.66,127.62,127.56,3.9199]
[1725752867549,9.66,127.62,127.57,3.84533236]
[1725752867842,9.66,127.62,127.55,9.66]
[1725752868444,9.66,127.62,127.57,3.9195]
[1725752868744,9.66,127.62,127.57,7.86705683]
[1725752870142,9.66,127.62,127.57,17.52705683]
[1725752871850,9.66,127.62,127.58,3.9191]
[1725752877057,3.9178,127.63,127.59,3.9188]
[1725752882655,9.66,127.62,127.53,1.2762]
[1725752882850,9.66,127.58,127.51,1.3753]
[1725752883162,9.66,127.56,127.5,4.00055685]
[1725752883350,9.66,127.55,127.49,1.3105]
[1725752883551,11.0344,127.55,127.49,5.15339746]
[1725752883747,9.66,127.53,127.49,5.15339746]
[1725752883952,9.66,127.53,127.48,148.87991879]
[1725752884359,9.66,127.53,127.5,3.9215]
[1725752885252,9.66,127.53,127.49,3.922]
[1725752885649,13.581,127.53,127.49,3.922]
[1725752887450,3.9211,127.52,127.49,3.922]
[1725752887757,1.3506,127.54,127.5,3.9217]
[1725752888654,9.66,127.53,127.49,3.9218]
[1725752889757,9.66,127.53,127.5,3.9217]
[1725752889963,9.66,127.53,127.48,148.87991879]
[1725752890160,13.581,127.53,127.49,3.9219]
[1725752890356,9.66,127.53,127.48,148.87991879]
[1725752890860,9.66,127.53,127.5,3.9215]
[1725752893667,9.66,127.52,127.49,3.9219]
[1725752893966,9.66,127.52,127.48,148.87991879]
[1725752894160,13.5812,127.52,127.48,152.80201879]
[1725752894966,13.5812,127.52,127.49,3.922]
[1725752896354,9.66,127.52,127.49,3.922]
[1725752896667,13.5809,127.53,127.49,3.922]
[1725752897066,13.5809,127.53,127.5,3.9217]
[1725752897265,9.66,127.53,127.48,148.87991879]
[1725752897470,5.2712,127.54,127.48,158.53991879]
[1725752897664,5.2712,127.54,127.5,3.9214]
[1725752897967,3.9208,127.53,127.5,3.9214]
[1725752903371,13.5813,127.52,127.49,3.922]
[1725752905065,3.9213,127.52,127.49,3.922]
[1725752906170,3.9213,127.52,127.5,3.9217]
[1725752906366,11.0106,127.54,127.48,148.87991879]
[1725752906969,14.9313,127.54,127.48,148.87991879]
[1725752907172,11.0344,127.55,127.49,9.66]
[1725752907475,14.9547,127.55,127.49,9.66]
[1725752907677,14.9547,127.55,127.52,3.921]
[1725752911880,9.66,127.55,127.49,9.66]
[1725752912082,9.66,127.57,127.5,1.3475]
[1725752912770,9.66,127.57,127.53,3.9206]
[1725752912771,3.9199,127.56,127.53,3.9206]
[1725752914384,3.9199,127.56,127.54,3.9204]
[1725752915682,3.9199,127.56,127.53,3.9206]
[1725752918785,3.9199,127.56,127.5,1.3475]
[1725752919280,3.9199,127.56,127.53,3.9206]
[1725752920673,3.9199,127.56,127.54,3.9205]
[1725752922585,3.9199,127.56,127.53,3.9206]
[1725752923377,9.66,127.57,127.53,3.9206]
[1725752923680,9.66,127.54,127.48,148.87991879]
[1725752923883,9.66,127.52,127.48,148.87991879]
[1725752925291,13.5814,127.52,127.49,3.9219]
[1725752926783,9.66,127.52,127.49,3.9219]
[1725752927286,13.5813,127.52,127.49,3.9219]
[1725752932388,13.5813,127.52,127.5,3.9217]
[1725752932783,1.3383,127.54,127.5,3.9217]
[1725752932983,1.3383,127.54,127.48,158.53991879]
[1725752933483,5.2589,127.54,127.51,3.9213]
[1725752935791,3.9209,127.53,127.51,3.9213]
[1725752936693,3.9209,127.53,127.5,3.9216]
[1725752940200,3.9211,127.52,127.5,3.9216]
[1725752940899,13.5811,127.52,127.49,3.9219]
[1725752942990,13.5811,127.52,127.5,3.9216]
[1725752945601,9.66,127.52,127.5,3.9216]
[1725752945904,3.9209,127.53,127.5,3.9216]
[1725752946299,3.9209,127.53,127.51,3.9214]
[1725752953306,14.9188,127.54,127.48,158.53991879]
[1725752953602,1.3383,127.54,127.48,158.53991879]
[1725752954101,1.3383,127.54,127.52,3.9209]
[1725752957614,5.2588,127.54,127.52,3.9209]
[1725752959317,3.9205,127.54,127.52,3.9209]
[1725752968038,3.9205,127.54,127.51,3.9212]
[1725752971039,3.9208,127.53,127.51,3.9212]
[1725752971833,3.9208,127.53,127.5,3.9215]
[1725752971834,13.5808,127.53,127.5,3.9215]
[1725752975939,13.5808,127.53,127.51,3.9214]
[1725752980043,13.5808,127.53,127.5,3.9216]
[1725752981445,9.66,127.53,127.51,3.9214]
[1725752981646,9.66,127.53,127.48,137.23172533]
[1725752982344,9.66,127.53,127.51,3.9213]
[1725752982840,13.5812,127.52,127.48,137.23172533]
[1725752983338,13.5812,127.52,127.49,3.9218]
[1725752985141,1.3299,127.56,127.49,3.9218]
[1725752985350,1.3299,127.56,127.48,137.23172533]
[1725752985550,9.66,127.53,127.48,137.23172533]
[1725752986452,13.581,127.53,127.48,137.23172533]
[1725752987252,13.581,127.53,127.49,3.9218]
[1725752989860,3.921,127.53,127.49,3.9218]
[1725752990053,13.581,127.53,127.49,3.9218]
[1725752991256,3.9211,127.52,127.49,3.9218]
[1725752994458,3.9203,127.55,127.52,3.921]
[1725752994646,9.66,127.55,127.49,9.66]
[1725752995353,3.9205,127.54,127.51,3.9211]
[1725752995559,3.9205,127.54,127.49,9.66]
[1725752996661,3.9205,127.54,127.51,3.9211]
[1725752996858,13.5805,127.54,127.51,3.9211]
[1725752997261,13.5805,127.54,127.52,3.9211]
[1725752998759,13.5806,127.54,127.51,3.9212]
[1725753002166,13.5809,127.53,127.5,3.9214]
[1725753002362,9.66,127.52,127.4,7.8493]
[1725753002556,1.4129,127.51,127.41,10.9791]
[1725753002763,9.66,127.47,127.45,3.9231]
[1725753004967,13.5827,127.47,127.44,3.9235]
[1725753006458,9.66,127.47,127.45,3.9232]
[1725753006659,9.66,127.49,127.43,3.9567025]
[1725753006867,9.66,127.49,127.42,521.54443055]
[1725753007271,13.5822,127.49,127.42,521.54443055]
[1725753007973,13.5822,127.49,127.46,3.9229]
[1725753009667,1.3588,127.52,127.45,9.66]
[1725753009863,9.66,127.51,127.45,10.9355]
[1725753010568,1.3588,127.52,127.46,3.97033432]
[1725753010868,13.5815,127.51,127.48,3.9222]
[1725753022771,9.66,127.49,127.47,3.9224]
[1725753024762,13.5822,127.49,127.46,3.9229]
[1725753028174,5.20705863,127.52,127.45,13.6777405]
[1725753028366,1.3588,127.52,127.46,9.66]
[1725753028775,1.3588,127.52,127.49,3.9219]
[1725753028975,5.2799,127.52,127.49,3.9219]
[1725753032677,9.66,127.5,127.48,3.9223]
[1725753035273,9.66,127.5,127.49,3.922]
[1725753035678,9.66,127.5,127.45,3.90113546]
[1725753035885,9.66,127.5,127.44,9.66]
[1725753036586,9.66,127.5,127.44,13.55219837]
[1725753037390,9.66,127.5,127.48,3.9223]
[1725753040692,1.3588,127.52,127.46,9.66]
[1725753040878,11.0188,127.52,127.46,9.66]
[1725753041783,14.9399,127.52,127.49,3.9218]
[1725753043178,9.66,127.52,127.46,9.66]
[1725753043383,9.66,127.52,127.47,1.3163]
[1725753044790,3.9206,127.54,127.47,10.9763]
[1725753044992,11.0295,127.55,127.47,10.9763]
[1725753045187,3.91560055,127.59,127.51,9.66]
[1725753045388,9.66,127.58,127.52,4.01617123]
[1725753045691,9.66,127.58,127.51,9.66]
[1725753045893,9.66,127.58,127.51,13.56879736]
[1725753045894,13.5793,127.58,127.51,13.56879736]
[1725753046596,13.5793,127.58,127.55,3.92]
[1725753047295,9.66,127.56,127.49,138.27577407]
[1725753047589,9.66,127.56,127.44,15.6891]
[1725753047590,9.66,127.52,127.45,12.4177]
[1725753047797,9.66,127.52,127.48,3.98996922]
[1725753047981,9.66,127.52,127.46,9.66]
[1725753048184,9.66,127.54,127.46,9.66]
[1725753048593,9.66,127.54,127.51,3.9212]
[1725753048892,9.66,127.54,127.47,1.3163]
[1725753049093,3.9208,127.53,127.5,3.9216]
[1725753049295,3.9208,127.53,127.5,7.92529522]
[1725753049491,3.9208,127.53,127.5,3.9216]
[1725753050092,3.9208,127.53,127.5,7.90724995]
[1725753050289,3.9208,127.53,127.5,3.9216]
[1725753050890,3.9208,127.53,127.5,7.84879898]
[1725753060599,32.14140103,127.59,127.52,9.66]
[1725753060600,7.22100103,127.59,127.52,9.66]
[1725753060790,3.32100103,127.59,127.57,9.66]
[1725753060992,2.6977,127.66,127.63,3.9176]
[1725753060993,3.32100103,127.66,127.63,3.9176]
[1725753061293,14.66,127.7,127.64,9.66]
[1725753061494,5.0,127.7,127.67,9.66]
[1725753061704,5.0,127.7,127.69,3.9159]
[1725753061899,5.0,127.7,127.69,7.87149602]
[1725753063802,4.0447,127.79,127.69,13.61559602]
[1725753064001,24.07,127.77,127.69,3.95559602]
[1725753064300,24.07,127.75,127.66,161.70876635]
[1725753064504,24.07,127.75,127.66,165.6220649]
[1725753065095,24.07,127.75,127.72,3.9148]
[1725753066103,24.07,127.75,127.66,141.5520649]
[1725753066605,24.07,127.75,127.69,3.9157]
[1725753067694,27.9841,127.75,127.69,3.9157]
[1725753069003,27.9841,127.75,127.7,3.9154]
[1725753070898,27.5947,127.79,127.66,165.6220649]
[1725753071103,24.07,127.75,127.66,165.6220649]
[1725753071607,3.92308963,127.74,127.7,3.9154]
[1725753073304,7.83758963,127.74,127.7,3.9154]
[1725753073505,3.9145,127.74,127.7,3.9154]
[1725753074004,27.9841,127.75,127.71,3.9152]
[1725753074803,24.07,127.75,127.72,3.9149]
[1725753075006,24.07,127.75,127.66,165.6220649]
[1725753075208,24.07,127.77,127.68,24.07]
[1725753075509,27.9836,127.77,127.73,3.9144]
[1725753075704,27.9836,127.77,127.68,24.07]
[1725753076100,24.07,127.77,127.68,24.07]
[1725753076302,28.1147,127.79,127.7,24.07]
[1725753076704,28.1147,127.79,127.75,3.9139]
[1725753077008,32.0278,127.79,127.75,3.9139]
[1725753077204,28.1147,127.79,127.74,3.9142]
[1725753077404,24.07,127.77,127.68,24.07]
[1725753077611,24.07,127.77,127.67,1.2922]
[1725753078607,24.07,127.77,127.73,3.9144]
[1725753079309,24.07,127.77,127.74,3.9143]
[1725753080308,3.9132,127.78,127.74,3.9143]
[1725753080607,28.1147,127.79,127.74,3.9143]
[1725753080608,3.9134,127.77,127.74,3.9143]
[1725753081313,3.9133,127.78,127.74,3.9143]
[1725753081514,3.9133,127.78,127.75,3.914]
[1725753082113,32.0276,127.79,127.75,3.914]
[1725753082312,32.0276,127.79,127.76,3.9137]
[1725753087715,7.9576,127.79,127.76,3.9137]
[1725753088018,28.04659368,127.81,127.72,4.00400227]
[1725753088019,3.9126,127.8,127.77,3.9133]
[1725753088514,3.9128,127.79,127.77,3.9133]
[1725753088821,3.9128,127.79,127.76,3.9136]
[1725753089216,28.04659368,127.81,127.77,3.9132]
[1725753089719,3.9127,127.8,127.77,3.9132]
[1725753090519,3.9128,127.79,127.76,3.9137]
[1725753090728,24.07,127.79,127.72,4.00400227]
[1725753090922,24.07,127.79,127.71,1.3884]
[1725753091226,27.983,127.79,127.76,3.9135]
[1725753091423,3.913,127.79,127.76,3.9135]
[1725753092230,4.0367,127.83,127.74,3.88945177]
[1725753092424,27.91834533,127.82,127.72,24.07]
[1725753092920,3.9125,127.8,127.77,3.9132]
[1725753093920,3.9128,127.79,127.76,3.9135]
[1725753094323,27.91834533,127.82,127.72,28.01582631]
[1725753094520,3.913,127.79,127.76,3.9135]
[1725753095925,24.07,127.78,127.68,1.273]
[1725753096118,24.07,127.75,127.68,1.273]
[1725753096423,3.9148,127.73,127.68,5.189]
[1725753097022,3.9151,127.72,127.67,3.9162]
[1725753097231,24.07,127.75,127.66,137.63876635]
[1725753097524,24.07,127.75,127.66,161.70876635]
[1725753097826,24.07,127.76,127.66,161.70876635]
[1725753098831,4.1162,127.77,127.68,24.07]
[1725753099031,4.1162,127.77,127.69,2.6897]
[1725753099338,3.9138,127.76,127.71,3.9151]
[1725753100039,3.9141,127.75,127.7,3.9155]
[1725753101340,3.9141,127.75,127.71,3.9152]
[1725753105142,3.9141,127.75,127.7,3.9154]
[1725753105550,3.9145,127.74,127.69,2.6897]
[1725753105934,3.9145,127.74,127.7,3.9155]
[1725753114942,3.9147,127.73,127.7,3.9155]
[1725753116749,3.9146,127.74,127.7,3.9155]
[1725753117543,28.1862,127.77,127.69,1.2981]
[1725753117544,4.1162,127.77,127.69,1.2981]
[1725753118045,28.1862,127.77,127.69,2.638]
[1725753118243,3.9144,127.74,127.7,3.9153]
[1725753119050,28.1862,127.77,127.69,2.638]
[1725753119349,24.07,127.75,127.69,1.2981]
[1725753120252,3.9149,127.73,127.69,1.2981]
[1725753120855,3.915,127.72,127.69,1.2981]
[1725753121045,27.97429076,127.75,127.69,1.2981]
[1725753122145,3.9149,127.73,127.69,5.2138]
[1725753123640,27.97429076,127.75,127.68,3.9161]
[1725753123641,3.915,127.72,127.68,3.9161]
[1725753124856,24.07,127.74,127.67,3.9164]
[1725753124857,3.9153,127.71,127.67,3.9164]
[1725753125054,24.07,127.74,127.67,3.9164]
[1725753125250,24.07,127.72,127.66,137.63876635]
[1725753125452,3.9156,127.7,127.66,141.55536635]
[1725753125856,3.9156,127.7,127.66,137.63876635]
[1725753126056,3.9159,127.69,127.66,137.63876635]
[1725753127258,2.6778,127.71,127.66,137.63876635]
[1725753127462,24.07,127.7,127.64,3.9173]
[1725753128547,3.9164,127.68,127.64,3.9173]
[1725753128759,3.9164,127.68,127.65,3.917]
[1725753129761,2.6778,127.71,127.63,24.07]
[1725753129966,25.3877,127.74,127.64,24.07]
[1725753130253,3.9152,127.72,127.68,3.916]
[1725753133048,3.9154,127.71,127.68,3.916]
[1725753133253,26.7714,127.74,127.67,3.9163]
[1725753133455,26.7714,127.74,127.67,7.91717004]
[1725753133654,30.71312266,127.74,127.65,1.3453]
[1725753133853,30.71312266,127.74,127.65,5.2650872]
[1725753134255,3.9154,127.71,127.68,3.916]
[1725753137666,3.9154,127.71,127.69,3.9159]
[1725753137964,3.9151,127.72,127.69,3.9159]
[1725753140866,3.9153,127.71,127.69,3.9159]
[1725753144564,13.5351,127.72,127.69,3.9159]
[1725753147279,3.9153,127.71,127.69,3.9159]
[1725753147470,3.9153,127.71,127.68,3.916]
[1725753147772,3.9153,127.71,127.65,14.8850872]
[1725753149181,3.9153,127.71,127.68,3.916]
[1725753160381,1.2998,127.73,127.66,9.62]
[1725753160586,12.3214,127.74,127.66,9.62]
[1725753161187,3.9147,127.73,127.66,9.62]
[1725753161885,3.9147,127.73,127.7,3.9154]
[1725753162986,13.535,127.72,127.69,3.9158]
[1725753170697,3.9153,127.71,127.69,3.9158]
[1725753171297,3.9153,127.71,127.65,16.2833872]
[1725753171298,3.9153,127.71,127.68,3.916]
[1725753174404,3.9156,127.7,127.65,6.6633872]
[1725753175206,3.9154,127.71,127.68,3.916]
[1725753175404,3.9154,127.71,127.65,6.6633872]
[1725753175905,13.5352,127.72,127.65,16.2833872]
[1725753176801,9.62,127.72,127.7,3.9154]
[1725753177906,3.9148,127.73,127.7,3.9154]
[1725753179409,13.535,127.72,127.69,3.9156]
[1725753180721,3.9153,127.71,127.69,3.9156]
[1725753184612,13.5352,127.72,127.69,3.9156]
[1725753185217,13.5352,127.72,127.65,16.2833872]
[1725753185516,9.62,127.72,127.7,3.9154]
[1725753186322,3.9148,127.73,127.7,3.9154]
[1725753188008,3.915,127.72,127.7,3.9154]
[1725753196910,1.3177,127.74,127.68,9.62]
[1725753197119,5.31199038,127.77,127.68,9.62]
[1725753197316,9.62,127.75,127.69,1.4102]
[1725753198016,13.5342,127.75,127.72,3.9148]
[1725753198822,3.9142,127.75,127.73,3.9146]
[1725753216632,3.9142,127.75,127.72,7.86860176]
[1725753216939,13.5342,127.75,127.72,3.9148]
[1725753217639,3.9145,127.74,127.72,3.9148]
[1725753218535,3.9145,127.74,127.71,3.915]
[1725753219042,9.62,127.73,127.66,9.62]
[1725753219333,5.19330391,127.77,127.65,14.4974872]
[1725753219334,9.62,127.72,127.65,17.6487872]
[1725753219539,13.5351,127.72,127.65,17.6487872]
[1725753219741,13.5351,127.72,127.69,3.9157]
[1725753220542,9.62,127.72,127.69,3.9157]
[1725753221341,13.5351,127.72,127.69,3.9157]
[1725753225147,3.9151,127.72,127.69,3.9157]
[1725753228947,3.9154,127.71,127.65,8.0287872]
[1725753229151,3.9154,127.71,127.65,17.6487872]
[1725753229343,13.5354,127.71,127.65,8.0287872]
[1725753229546,13.5354,127.71,127.65,17.6487872]
[1725753229952,13.5354,127.71,127.68,3.9159]
[1725753230850,9.62,127.7,127.68,3.9159]
[1725753231148,13.5357,127.7,127.65,6.6304872]
[1725753231347,13.5357,127.7,127.67,3.9164]
[1725753235447,3.9159,127.69,127.67,3.9164]
[1725753235647,3.9159,127.69,127.65,3.9197872]
[1725753235648,3.9159,127.69,127.66,3.9167]
[1725753235852,13.5359,127.69,127.66,3.9167]
[1725753236553,13.5359,127.69,127.65,3.917]
[1725753236554,3.9162,127.68,127.65,3.917]
[1725753236753,13.5362,127.68,127.65,3.917]
[1725753237958,9.62,127.68,127.64,146.30129676]